bitfinex/quotes_SOLUSD_20251218
["timestamp","ask_amount","ask_price","bid_price","bid_amount"]
[1766052916751,8.0729822,123.87,123.84,0.68]
[1766052916956,8.7729822,123.87,123.84,0.68]
[1766052917875,0.7,123.86,123.83,0.68]
[1766052918058,0.7,123.85,123.83,0.68]
[1766052918672,0.7,123.84,123.82,0.68]
[1766052919083,0.7,123.83,123.8,0.68]
[1766052920682,12.53684446,123.84,123.8,0.68]
[1766052921559,8.7746371,123.85,123.81,4.44151968]
[1766052921758,8.7746371,123.85,123.82,0.68]
[1766052922180,8.77392643,123.86,123.82,0.68]
[1766052922364,0.7,123.85,123.82,0.68]
[1766052923189,11.83582567,123.85,123.82,0.68]
[1766052923377,2.40842248,123.84,123.8,0.68]
[1766052923584,0.7,123.83,123.8,0.68]
[1766052924460,8.77559843,123.83,123.8,0.68]
[1766052925073,11.18402091,123.83,123.8,0.68]
[1766052925389,0.7,123.82,123.8,0.68]
[1766052928097,0.7,123.81,123.78,0.68]
[1766052928597,11.18471534,123.82,123.78,0.68]
[1766052928798,0.7,123.81,123.78,0.68]
[1766052931291,8.77690995,123.81,123.78,0.68]
[1766052932288,0.7,123.81,123.78,0.68]
[1766052932988,8.07594228,123.83,123.78,2.40842248]
[1766052933191,0.7,123.82,123.8,0.68]
[1766052934900,0.7,123.82,123.79,0.68]
[1766052935276,8.07594228,123.83,123.79,0.68]
[1766052935490,0.7,123.82,123.79,0.68]
[1766052939981,0.7,123.81,123.78,0.68]
[1766052940689,8.07754442,123.8,123.78,0.68]
[1766052941073,8.77719167,123.81,123.78,0.68]
[1766052944615,0.72,123.8,123.78,0.68]
[1766052944770,8.79719167,123.81,123.78,0.69]
[1766052946703,8.79582817,123.83,123.78,2.4094607]
[1766052946896,8.79582817,123.83,123.79,0.69]
[1766052947905,8.07582817,123.83,123.79,0.69]
[1766052948208,0.72,123.82,123.79,0.69]
[1766052949506,8.79582817,123.83,123.79,0.69]
[1766052950199,8.07582817,123.83,123.79,0.69]
[1766052950417,0.72,123.82,123.79,0.69]
[1766052950600,8.79645521,123.82,123.79,0.69]
[1766052953314,0.72,123.81,123.79,0.69]
[1766052953715,8.07645521,123.82,123.77,22.89554467]
[1766052953907,3.1294607,123.8,123.77,22.20554467]
[1766052954103,9.80994491,123.77,123.72,0.2]
[1766052954305,8.80994492,123.72,123.68,1e-08]
[1766052954493,2.4094607,123.69,123.67,0.89]
[1766052954697,2.4094607,123.69,123.67,0.2]
[1766052954915,5.42985707,123.71,123.67,2.6094607]
[1766052955119,2.51899753,123.7,123.68,2.4094607]
[1766052955423,8.80296661,123.72,123.68,0.69]
[1766052955912,17.08928598,123.72,123.68,0.69]
[1766052956711,8.28631937,123.72,123.69,0.69]
[1766052956914,8.28631937,123.72,123.69,2.4094607]
[1766052957100,10.43780574,123.72,123.7,0.69]
[1766052960334,0.72,123.71,123.68,0.69]
[1766052960534,0.72,123.71,123.68,3.0994607]
[1766052960831,19.2406036,123.72,123.69,0.69]
[1766052961613,8.08531084,123.73,123.68,2.4094607]
[1766052961614,8.08531084,123.73,123.71,2.4094607]
[1766052961834,8.08163715,123.74,123.72,0.69]
[1766052962001,102.3,123.81,123.73,0.69]
[1766052962002,8.0795023,123.77,123.73,0.69]
[1766052962203,0.72,123.76,123.73,3.0994607]
[1766052962627,8.0795023,123.77,123.74,0.69]
[1766052962835,0.72,123.76,123.73,3.0994607]
[1766052963037,0.72,123.76,123.73,0.69]
[1766052963632,0.72,123.76,123.72,2.4094607]
[1766052963838,0.72,123.75,123.71,3.0994607]
[1766052964010,0.72,123.75,123.72,0.69]
[1766052964339,8.80103006,123.75,123.72,0.69]
[1766052964934,0.72,123.73,123.69,20.87534592]
[1766052965115,0.72,123.73,123.7,3.0994607]
[1766052965614,0.72,123.74,123.71,3.0994607]
[1766052965814,0.72,123.74,123.71,0.69]
[1766052967031,8.80147156,123.74,123.71,0.69]
[1766052969425,0.69,123.72,123.69,11.12767296]
[1766052969630,0.69,123.72,123.7,0.69]
[1766052969926,0.69,123.73,123.7,0.69]
[1766052970845,8.77241352,123.73,123.7,0.69]
[1766052971243,0.69,123.72,123.68,0.69]
[1766052971447,0.69,123.71,123.67,0.2]
[1766052971652,0.69,123.71,123.68,0.69]
[1766052973028,8.77357002,123.71,123.68,0.69]
[1766052975757,0.69,123.71,123.68,0.69]
[1766052976129,8.77349394,123.71,123.68,0.69]
[1766052978360,0.69,123.71,123.68,0.69]
[1766052978533,8.77346311,123.71,123.68,0.69]
[1766052979837,0.69,123.71,123.68,0.69]
[1766052980339,8.28666958,123.72,123.69,2.4094607]
[1766052980553,30.64097302,123.75,123.71,0.72]
[1766052980554,0.66,123.75,123.71,0.72]
[1766052981154,0.66,123.74,123.7,0.72]
[1766052981459,0.66,123.74,123.71,0.72]
[1766052982258,8.74146242,123.74,123.71,0.72]
[1766052983055,0.66,123.73,123.7,2.4094607]
[1766052983255,0.66,123.73,123.7,3.1294607]
[1766052984043,8.08146242,123.74,123.7,2.4094607]
[1766052984249,8.74146242,123.74,123.71,0.72]
[1766052986361,0.66,123.74,123.71,0.72]
[1766052987649,0.66,123.74,123.71,4.48875421]
[1766052988551,8.74134315,123.75,123.72,0.72]
[1766052988755,12.51009736,123.75,123.72,0.72]
[1766052988954,24.62947993,123.76,123.72,0.72]
[1766052989160,4.42875421,123.76,123.72,0.72]
[1766052991668,12.50877655,123.77,123.73,0.72]
[1766052991963,0.66,123.76,123.73,0.72]
[1766052992161,4.42875421,123.78,123.73,0.72]
[1766052992554,4.42875421,123.78,123.74,0.72]
[1766052992782,0.66,123.77,123.74,0.72]
[1766052996167,0.66,123.75,123.72,0.72]
[1766052996371,0.66,123.74,123.71,11.15767296]
[1766052997448,8.74015513,123.76,123.73,0.72]
[1766052997668,20.19875575,123.77,123.73,0.72]
[1766052997669,8.73970449,123.77,123.73,0.72]
[1766052998573,0.66,123.76,123.73,0.72]
[1766053000848,8.080181,123.76,123.71,22.2896756]
[1766053001050,0.66,123.75,123.72,0.72]
[1766053002378,0.68,123.76,123.72,11.85146337]
[1766053002561,0.68,123.77,123.73,0.65]
[1766053003570,0.68,123.76,123.73,0.65]
[1766053007066,0.68,123.76,123.73,4.41875421]
[1766053010676,0.68,123.76,123.73,0.65]
[1766053010880,0.68,123.76,123.72,12.50146337]
[1766053013092,0.68,123.76,123.72,12.5002022]
[1766053013588,0.68,123.76,123.73,0.65]
[1766053013962,0.68,123.76,123.72,11.8502022]
[1766053014183,0.68,123.76,123.72,12.5002022]
[1766053014868,0.68,123.76,123.72,4.41749304]
[1766053020187,0.68,123.76,123.72,0.65]
[1766053021064,0.68,123.76,123.72,3.76749304]
[1766053021264,0.68,123.76,123.72,4.41749304]
[1766053021465,0.68,123.76,123.73,0.65]
[1766053023286,17.28722061,123.77,123.73,0.65]
[1766053023489,0.68,123.75,123.73,0.65]
[1766053026195,0.68,123.75,123.72,12.50019608]
[1766053026389,3.76749304,123.74,123.68,132.02225044]
[1766053026592,0.68,123.71,123.67,0.85]
[1766053026782,0.68,123.7,123.67,0.85]
[1766053027491,0.68,123.7,123.67,0.2]
[1766053027697,6.127219,123.7,123.67,0.85]
[1766053028373,0.68,123.7,123.67,0.85]
[1766053029092,0.66,123.71,123.68,0.68]
[1766053029389,6.10482366,123.71,123.68,0.68]
[1766053029778,0.66,123.71,123.68,8.76531944]
[1766053031900,0.66,123.71,123.68,0.68]
[1766053046514,20.2042774,123.74,123.7,0.7]
[1766053046515,0.7,123.73,123.7,0.7]
[1766053047310,0.7,123.77,123.71,3.76749304]
[1766053047486,0.7,123.77,123.72,0.7]
[1766053047487,0.7,123.75,123.72,0.7]
[1766053047890,0.7,123.75,123.69,8.80994492]
[1766053048089,0.7,123.75,123.71,0.7]
[1766053049912,8.0809029,123.75,123.71,3.11163539]
[1766053050213,0.7,123.74,123.7,10.49533137]
[1766053050404,0.7,123.74,123.7,11.19533137]
[1766053050610,0.7,123.73,123.7,0.7]
[1766053050812,0.7,123.73,123.69,11.19619409]
[1766053050990,0.7,123.73,123.7,0.7]
[1766053053911,0.7,123.73,123.69,8.0845587]
[1766053054216,0.7,123.73,123.69,11.19619409]
[1766053055416,0.7,123.73,123.7,0.7]
[1766053060917,0.7,123.73,123.69,10.49619409]
[1766053061123,0.7,123.72,123.68,11.19668214]
[1766053061634,0.7,123.72,123.69,0.7]
[1766053062720,0.7,123.72,123.68,0.72]
[1766053068329,6.1444182,123.72,123.68,0.72]
[1766053069013,5.4444182,123.72,123.69,0.72]
[1766053069418,6.1544182,123.72,123.69,0.72]
[1766053071029,0.71,123.71,123.67,10.63767296]
[1766053071236,0.71,123.71,123.68,0.72]
[1766053074832,6.16020104,123.71,123.68,0.72]
[1766053075128,5.45020104,123.71,123.68,0.72]
[1766053075342,6.16020104,123.71,123.68,0.72]
[1766053075534,0.71,123.7,123.68,0.72]
[1766053081743,6.16020104,123.71,123.68,0.72]
[1766053083022,5.45020104,123.71,123.68,0.72]
[1766053083227,0.71,123.7,123.68,0.72]
[1766053084347,6.16020104,123.71,123.68,0.72]
[1766053084847,0.71,123.71,123.68,0.72]
[1766053085030,6.16101655,123.71,123.68,0.72]
[1766053087439,0.71,123.7,123.67,10.63767296]
[1766053087834,0.71,123.69,123.67,11.35767296]
[1766053088434,0.71,123.69,123.67,10.63767296]
[1766053088629,0.71,123.69,123.67,11.35767296]
[1766053090047,0.71,123.7,123.67,11.35767296]
[1766053092645,0.71,123.69,123.67,11.35767296]
[1766053093236,6.16049518,123.7,123.67,11.35767296]
[1766053093424,0.71,123.69,123.67,0.2]
[1766053093631,0.71,123.69,123.67,10.63767296]
[1766053094825,5.45049518,123.7,123.68,0.71]
[1766053095027,5.45049518,123.7,123.67,18.00369761]
[1766053095227,2.41327126,123.68,123.65,0.91]
[1766053095530,7.86376644,123.68,123.65,0.91]
[1766053096046,2.41327126,123.7,123.66,0.71]
[1766053096430,5.45105158,123.7,123.66,0.71]
[1766053097446,5.45105158,123.71,123.68,0.65]
[1766053097744,2.41327126,123.72,123.68,0.65]
[1766053097939,5.45108468,123.71,123.68,0.65]
[1766053100137,5.45108468,123.72,123.68,0.65]
[1766053100365,5.45108468,123.71,123.68,0.65]
[1766053100554,5.45108468,123.72,123.68,0.65]
[1766053100762,5.45108468,123.71,123.68,0.65]
[1766053100939,5.45108468,123.72,123.68,0.65]
[1766053101140,5.45108468,123.71,123.68,0.65]
[1766053101340,5.45108468,123.72,123.69,0.65]
[1766053101542,8.08174433,123.74,123.69,0.65]
[1766053101746,5.45239736,123.73,123.69,0.65]
[1766053101951,5.45239736,123.72,123.69,0.65]
[1766053102163,5.45239736,123.73,123.69,0.65]
[1766053102363,5.45239736,123.72,123.69,0.65]
[1766053102667,5.45239736,123.73,123.69,0.65]
[1766053102847,10.49501559,123.74,123.69,0.65]
[1766053103047,5.45244456,123.73,123.69,0.65]
[1766053103250,10.49501559,123.74,123.69,0.65]
[1766053103462,5.45271868,123.73,123.69,0.65]
[1766053103655,10.49501559,123.74,123.69,0.65]
[1766053103857,5.45271868,123.73,123.69,0.65]
[1766053104055,10.49501559,123.74,123.69,0.65]
[1766053104258,5.45271868,123.73,123.69,0.65]
[1766053104459,2.41327126,123.73,123.69,0.65]
[1766053104657,5.45299471,123.72,123.69,0.65]
[1766053104858,2.41327126,123.73,123.69,0.65]
[1766053105262,5.45299471,123.72,123.69,0.65]
[1766053105439,10.49501559,123.74,123.69,0.65]
[1766053105642,5.45328457,123.73,123.69,0.65]
[1766053105861,5.45328457,123.72,123.69,0.65]
[1766053106166,10.49501559,123.74,123.69,0.65]
[1766053106367,5.45309053,123.73,123.69,0.65]
[1766053106568,5.45309053,123.72,123.69,0.65]
[1766053106769,10.49501559,123.74,123.69,0.65]
[1766053106968,5.45339563,123.73,123.69,0.65]
[1766053107176,5.45339563,123.72,123.69,0.65]
[1766053107347,11.85157453,123.74,123.69,0.65]
[1766053107547,5.45377726,123.73,123.69,0.65]
[1766053107774,5.45377726,123.72,123.69,0.65]
[1766053108069,11.85157453,123.74,123.69,0.65]
[1766053108271,5.45377726,123.73,123.69,0.65]
[1766053108571,5.45377726,123.72,123.69,0.65]
[1766053108772,11.85157453,123.74,123.69,0.65]
[1766053109065,5.45370734,123.73,123.69,0.65]
[1766053109268,5.45370734,123.72,123.69,0.65]
[1766053109453,11.85157453,123.74,123.69,0.65]
[1766053109651,5.45360223,123.73,123.69,0.65]
[1766053109951,5.45360223,123.72,123.69,0.65]
[1766053110270,11.85157453,123.74,123.69,0.65]
[1766053110569,9.22337011,123.73,123.69,0.65]
[1766053110773,5.45353991,123.72,123.69,0.65]
[1766053111068,11.85157453,123.74,123.69,0.65]
[1766053111252,5.45340435,123.73,123.69,0.65]
[1766053111568,5.45340435,123.72,123.69,0.65]
[1766053111772,11.85157453,123.74,123.69,0.65]
[1766053111956,5.45325142,123.73,123.69,0.65]
[1766053112150,5.45325142,123.72,123.69,0.65]
[1766053112357,11.85157453,123.74,123.7,0.65]
[1766053112557,5.45297414,123.73,123.7,0.65]
[1766053112773,5.45297414,123.72,123.7,0.65]
[1766053112949,11.85157453,123.74,123.7,0.65]
[1766053113152,5.45323632,123.73,123.7,0.65]
[1766053113352,5.45323632,123.72,123.7,0.65]
[1766053113551,3.7698302,123.73,123.7,0.65]
[1766053113750,5.45317561,123.72,123.7,0.65]
[1766053113974,3.7698302,123.73,123.7,0.65]
[1766053114176,5.45317561,123.72,123.7,0.65]
[1766053114357,3.7698302,123.73,123.7,0.65]
[1766053114674,5.45311809,123.72,123.7,0.65]
[1766053114867,11.85157453,123.74,123.7,0.65]
[1766053115070,5.45311555,123.73,123.7,0.65]
[1766053115270,5.45311555,123.72,123.7,0.65]
[1766053115470,5.45311555,123.74,123.7,0.65]
[1766053115664,5.45311555,123.73,123.7,0.65]
[1766053115848,22.28864402,123.75,123.7,0.65]
[1766053116050,5.45259914,123.74,123.7,0.65]
[1766053116276,5.45259914,123.73,123.7,0.65]
[1766053116470,8.08146295,123.74,123.7,0.65]
[1766053116674,5.45232454,123.73,123.7,0.65]
[1766053116883,8.08146295,123.74,123.7,0.65]
[1766053117189,5.45232454,123.73,123.7,0.65]
[1766053119848,5.45232454,123.72,123.69,0.65]
[1766053120054,3.7698302,123.72,123.69,0.65]
[1766053120278,9.22170597,123.72,123.69,0.65]
[1766053121357,17.30455927,123.72,123.69,0.65]
[1766053121679,11.8526835,123.72,123.69,0.65]
[1766053123278,3.7698302,123.72,123.69,0.65]
[1766053123479,9.2216039,123.72,123.69,0.65]
[1766053126083,5.4517737,123.72,123.69,0.65]
[1766053126286,9.2216039,123.72,123.69,0.65]
[1766053130186,5.4517737,123.72,123.69,0.65]
[1766053132500,9.2216039,123.72,123.69,0.65]
[1766053134184,5.4517737,123.72,123.69,0.65]
[1766053134379,9.2216039,123.72,123.69,0.65]
[1766053139280,3.7698302,123.72,123.69,0.65]
[1766053139498,9.22337945,123.72,123.69,0.65]
[1766053140201,3.7698302,123.72,123.69,0.65]
[1766053144204,5.4585784,123.71,123.69,0.65]
[1766053145104,5.45857967,123.71,123.69,0.65]
[1766053145290,8.08211428,123.73,123.69,0.65]
[1766053145496,9.22889229,123.72,123.69,0.65]
[1766053145808,0.71,123.73,123.69,0.66]
[1766053146999,0.71,123.72,123.69,0.66]
[1766053147397,0.71,123.72,123.7,0.66]
[1766053153698,0.71,123.73,123.71,0.68]
[1766053154506,0.71,123.73,123.69,8.08438237]
[1766053154712,0.71,123.73,123.7,0.68]
[1766053156694,0.71,123.73,123.7,8.08399111]
[1766053156891,7.48322459,123.76,123.72,0.71]
[1766053157115,0.66,123.76,123.73,0.71]
[1766053157818,5.45570145,123.75,123.73,0.71]
[1766053158021,4.42989874,123.76,123.73,0.71]
[1766053158224,5.45570145,123.75,123.73,0.71]
[1766053158919,0.66,123.76,123.73,0.71]
[1766053160404,0.66,123.76,123.73,12.561967]
[1766053160605,0.66,123.76,123.73,11.851967]
[1766053160828,0.66,123.76,123.74,0.71]
[1766053162022,0.66,123.77,123.74,0.71]
[1766053162229,0.66,123.78,123.75,0.71]
[1766053168127,0.66,123.76,123.73,0.71]
[1766053168329,0.66,123.75,123.72,0.71]
[1766053169807,0.66,123.75,123.72,3.12174054]
[1766053170006,0.66,123.75,123.72,2.41174054]
[1766053170207,0.66,123.75,123.72,3.12174054]
[1766053170819,0.66,123.75,123.72,2.41174054]
[1766053171013,0.66,123.75,123.73,0.71]
[1766053171419,0.66,123.77,123.74,0.71]
[1766053172026,0.66,123.77,123.74,3.12174054]
[1766053173135,0.66,123.77,123.74,0.71]
[1766053180849,8.07854914,123.79,123.74,0.71]
[1766053180850,0.66,123.79,123.75,0.71]
[1766053181024,6.09321082,123.8,123.76,0.71]
[1766053181336,0.66,123.81,123.78,0.71]
[1766053181532,3.07174054,123.81,123.78,0.71]
[1766053181744,0.66,123.8,123.78,0.71]
[1766053182344,0.66,123.8,123.76,0.66]
[1766053182833,0.66,123.8,123.77,0.66]
[1766053183451,0.69,123.8,123.77,0.66]
[1766053184949,0.69,123.8,123.78,0.66]
[1766053185133,3.10174054,123.82,123.78,0.66]
[1766053185748,0.69,123.82,123.78,0.66]
[1766053186053,8.52894137,123.82,123.78,0.66]
[1766053186247,0.69,123.81,123.78,0.66]
[1766053186450,3.10174054,123.81,123.78,0.66]
[1766053187429,0.69,123.81,123.78,0.66]
[1766053187630,3.10174054,123.82,123.79,0.66]
[1766053188048,0.69,123.81,123.79,0.66]
[1766053188451,0.69,123.81,123.78,0.66]
[1766053190658,2.41174054,123.82,123.79,0.66]
[1766053190865,0.69,123.82,123.79,0.66]
[1766053192436,8.07511045,123.84,123.79,8.07816191]
[1766053192645,0.69,123.84,123.8,2.41174054]
[1766053193251,0.2,123.85,123.8,2.41174054]
[1766053193456,0.89,123.85,123.81,2.41174054]
[1766053193758,0.89,123.85,123.81,10.48818086]
[1766053194267,0.69,123.84,123.81,8.07644032]
[1766053194569,0.89,123.85,123.82,0.66]
[1766053195260,0.2,123.85,123.82,0.66]
[1766053195498,0.69,123.84,123.82,0.66]
[1766053196536,0.2,123.85,123.82,0.66]
[1766053196739,3.30174054,123.85,123.82,0.66]
[1766053197158,2.61174054,123.85,123.82,0.66]
[1766053197368,0.69,123.84,123.81,8.73644032]
[1766053198571,0.69,123.84,123.82,0.66]
[1766053198767,0.89,123.85,123.82,0.66]
[1766053199238,0.89,123.85,123.82,8.73617194]
[1766053200456,0.89,123.85,123.83,0.66]
[1766053201443,0.89,123.85,123.82,8.07617194]
[1766053201645,0.89,123.85,123.82,8.73617194]
[1766053202058,0.89,123.85,123.83,0.66]
[1766053202360,2.61174054,123.86,123.83,0.66]
[1766053202361,0.2,123.86,123.83,0.66]
[1766053202661,0.2,123.86,123.84,8.7349354]
[1766053202848,0.89,123.87,123.84,8.7349354]
[1766053202849,0.89,123.87,123.84,10.48667594]
[1766053203051,2.61174054,123.89,123.84,10.48667594]
[1766053203052,0.2,123.89,123.86,0.66]
[1766053203557,0.89,123.89,123.86,0.66]
[1766053204148,2.61174054,123.89,123.86,0.66]
[1766053204353,0.69,123.86,123.83,19.17311475]
[1766053204954,0.69,123.86,123.84,0.66]
[1766053206372,0.69,123.86,123.83,19.17311475]
[1766053206546,0.69,123.85,123.82,8.07618866]
[1766053208470,0.69,123.85,123.81,11.09767296]
[1766053208471,2.41174054,123.85,123.81,19.17431536]
[1766053208652,0.69,123.84,123.81,18.51431536]
[1766053208853,0.69,123.84,123.81,19.17431536]
[1766053209173,0.69,123.84,123.81,18.51431536]
[1766053209378,0.69,123.84,123.81,19.17431536]
[1766053210774,0.69,123.82,123.79,0.66]
[1766053211361,0.69,123.82,123.79,8.73786427]
[1766053212053,2.41174054,123.82,123.78,27.24996299]
[1766053212275,2.41174054,123.82,123.78,8.73860628]
[1766053212276,0.69,123.81,123.78,8.73860628]
[1766053214279,0.69,123.81,123.78,8.07860628]
[1766053214670,0.69,123.81,123.78,8.75860628]
[1766053215387,0.69,123.81,123.79,0.68]
[1766053216877,2.40911687,123.82,123.79,0.68]
[1766053217075,0.68,123.81,123.79,0.68]
[1766053217285,0.68,123.81,123.78,8.75860628]
[1766053217661,0.68,123.81,123.78,8.07860628]
[1766053217862,0.68,123.81,123.79,0.68]
[1766053218673,8.0756434,123.85,123.79,0.68]
[1766053218987,0.88,123.89,123.85,28.25999191]
[1766053219289,0.68,123.88,123.84,8.07461645]
[1766053219680,0.68,123.88,123.84,18.55415786]
[1766053221076,0.68,123.87,123.83,10.48458943]
[1766053221275,0.68,123.87,123.83,2.40911687]
[1766053223392,0.71,123.85,123.8,8.80994492]
[1766053223591,0.71,123.85,123.81,2.40911687]
[1766053223891,0.71,123.85,123.81,20.96716513]
[1766053224098,0.71,123.85,123.81,18.55804826]
[1766053224405,0.71,123.85,123.82,8.07616006]
[1766053224798,0.71,123.85,123.81,18.55806319]
[1766053225477,29.19178631,123.89,123.83,2.40911687]
[1766053225678,0.71,123.88,123.83,2.40911687]
[1766053227086,0.71,123.87,123.83,2.40911687]
[1766053229065,0.71,123.87,123.83,13.04678983]
[1766053230193,0.71,123.87,123.83,10.63767296]
[1766053230689,0.71,123.87,123.82,20.96649849]
[1766053231393,0.71,123.87,123.82,22.31823862]
[1766053232574,0.71,123.87,123.83,3.760857]
[1766053233697,0.71,123.87,123.82,18.55738162]
[1766053233902,4.470857,123.86,123.81,11.83757468]
[1766053234083,0.71,123.85,123.81,23.67094826]
[1766053234579,0.71,123.85,123.81,19.91009126]
[1766053234774,0.71,123.85,123.81,23.67094826]
[1766053235790,0.71,123.85,123.81,19.91009126]
[1766053236099,4.470857,123.84,123.8,16.88719539]
[1766053236281,0.71,123.81,123.79,20.18127467]
[1766053236479,0.71,123.81,123.78,8.07856523]
[1766053236677,0.71,123.81,123.78,18.51623819]
[1766053236873,0.71,123.81,123.78,8.07856523]
[1766053237090,0.71,123.81,123.79,10.43767296]
[1766053237290,0.71,123.8,123.76,20.65033539]
[1766053237497,0.71,123.8,123.77,10.43767296]
[1766053237887,0.71,123.8,123.77,18.51716286]
[1766053238572,0.71,123.82,123.77,22.27801986]
[1766053238784,0.71,123.81,123.77,22.27801986]
[1766053243506,0.7,123.84,123.77,42.47677561]
[1766053243700,0.7,123.82,123.78,12.57080192]
[1766053244600,0.7,123.82,123.78,20.6490297]
[1766053244823,0.7,123.82,123.78,11.83908478]
[1766053251482,0.7,123.82,123.78,8.07822778]
[1766053251695,0.7,123.82,123.78,16.8881727]
[1766053251898,3.760857,123.82,123.78,8.07822778]
[1766053252212,0.7,123.8,123.77,18.51681669]
[1766053253814,0.7,123.81,123.77,18.51681669]
[1766053259220,0.7,123.8,123.77,18.51681669]
[1766053270327,0.7,123.8,123.77,22.27767369]
[1766053275520,0.69,123.82,123.77,42.47642944]
[1766053279228,3.760857,123.82,123.77,42.47642944]
[1766053279433,0.69,123.81,123.77,42.47642944]
[1766053280329,0.69,123.81,123.77,38.71557244]
[1766053280630,0.69,123.81,123.77,42.47642944]
[1766053282939,0.69,123.81,123.77,42.47999587]
[1766053284837,0.69,123.81,123.77,38.71557244]
[1766053285137,0.69,123.81,123.77,42.47999587]
[1766053286834,0.69,123.81,123.78,12.57436835]
[1766053287034,0.69,123.82,123.78,12.57436835]
[1766053287338,0.69,123.82,123.78,8.80994492]
[1766053287517,0.69,123.82,123.78,12.57436835]
[1766053287942,0.69,123.82,123.79,8.07819694]
[1766053293131,0.69,123.82,123.79,10.48698205]
[1766053293557,0.69,123.85,123.81,2.40878511]
[1766053293849,0.69,123.84,123.81,2.40878511]
[1766053294362,0.69,123.86,123.83,12.84645807]
[1766053294565,0.69,123.87,123.84,2.40878511]
[1766053295236,0.69,123.87,123.84,10.48345344]
[1766053295829,0.69,123.87,123.83,18.51291242]
[1766053296028,0.69,123.87,123.83,20.92169753]
[1766053296534,0.69,123.87,123.83,18.51291242]
[1766053296758,0.69,123.87,123.83,20.92169753]
[1766053299857,0.69,123.87,123.84,2.40878511]
[1766053301832,0.69,123.87,123.84,10.48349378]
[1766053309543,0.69,123.87,123.84,8.07470867]
[1766053310175,0.69,123.87,123.84,10.48349378]
[1766053311347,0.69,123.87,123.84,2.40878511]
[1766053311547,0.69,123.87,123.84,10.48367898]
[1766053313857,0.69,123.87,123.84,8.07489387]
[1766053314164,0.69,123.87,123.84,10.48367898]
[1766053314666,0.69,123.87,123.84,8.07489387]
[1766053314868,0.69,123.87,123.84,10.48367898]
[1766053315868,0.69,123.87,123.84,8.07489387]
[1766053316180,0.69,123.87,123.84,10.48367898]
[1766053316473,0.69,123.87,123.83,20.92174767]
[1766053316658,0.69,123.87,123.83,12.84645807]
[1766053317047,0.69,123.86,123.83,10.43767296]
[1766053317662,0.69,123.86,123.83,18.51324068]
[1766053318279,0.69,123.86,123.83,20.92202579]
[1766053320585,0.69,123.86,123.83,18.51324068]
[1766053320765,0.69,123.86,123.83,20.92202579]
[1766053323072,0.69,123.86,123.83,18.51324068]
[1766053323277,0.69,123.86,123.83,20.92202579]
[1766053336674,0.69,123.86,123.84,10.43767296]
[1766053336889,0.2,123.89,123.83,10.43767296]
[1766053336890,2.40878511,123.85,123.83,10.43767296]
[1766053337091,0.69,123.84,123.83,10.43767296]
[1766053346986,0.69,123.87,123.83,20.92204556]
[1766053347185,0.69,123.88,123.85,2.40878511]
[1766053348216,0.69,123.88,123.85,10.48296548]
[1766053350995,0.69,123.88,123.85,8.07418037]
[1766053352502,0.69,123.88,123.84,11.83490914]
[1766053364114,3.76014646,123.87,123.83,18.50903107]